[Event "*** Titled Tuesday Blitz"]
[Site "Chess.com"]
[Date "2020.05.12"]
[Round "10"]
[White "Maksimus1998"]
[Black "vaishali2001"]
[Result "0-1"]
[WhiteElo "2455"]
[BlackElo "2641"]
[TimeControl "180+1"]
[EndTime "11:54:57 PDT"]
[Termination "vaishali2001 won by resignation"]

1. c4 {[%clk 0:03:00.9]} 1... e5 {[%clk 0:02:55.8]} 2. g3 {[%clk 0:03:00.3]}
2... Nf6 {[%clk 0:02:55.8]} 3. Bg2 {[%clk 0:03:00.4]} 3... c6 {[%clk 0:02:56.3]}
4. Nf3 {[%clk 0:02:58.4]} 4... e4 {[%clk 0:02:56.7]} 5. Nd4 {[%clk 0:02:58.5]}
5... Qb6 {[%clk 0:02:56.9]} 6. Nb3 {[%clk 0:02:57.2]} 6... a5 {[%clk 0:02:57.2]}
7. d3 {[%clk 0:02:56.3]} 7... a4 {[%clk 0:02:56.3]} 8. N3d2 {[%clk 0:02:56.5]}
8... d5 {[%clk 0:02:37.3]} 9. dxe4 {[%clk 0:02:48.5]} 9... dxe4 {[%clk
0:02:36.4]} 10. Nxe4 {[%clk 0:02:46.8]} 10... Nxe4 {[%clk 0:02:37.3]} 11. Bxe4
{[%clk 0:02:47.1]} 11... Bh3 {[%clk 0:02:37.4]} 12. Qc2 {[%clk 0:02:38.8]} 12...
Bc5 {[%clk 0:02:35.3]} 13. e3 {[%clk 0:02:37.4]} 13... Nd7 {[%clk 0:02:29.6]}
14. Nc3 {[%clk 0:02:35.6]} 14... Nf6 {[%clk 0:02:27.5]} 15. Bf5 {[%clk
0:02:17.4]} 15... Bg2 {[%clk 0:02:21.7]} 16. Rg1 {[%clk 0:02:17.4]} 16... Bf3
{[%clk 0:02:19.8]} 17. g4 {[%clk 0:01:59.8]} 17... g6 {[%clk 0:01:57]} 18. Ne4
{[%clk 0:01:58.7]} 18... Nxe4 {[%clk 0:01:48.9]} 19. Bxe4 {[%clk 0:01:58.2]}
19... Bb4+ {[%clk 0:01:47.1]} 20. Kf1 {[%clk 0:01:57.6]} 20... Bxe4 {[%clk
0:01:42.9]} 21. Qxe4+ {[%clk 0:01:58.5]} 21... Kd7 {[%clk 0:01:37.7]} 22. Qd4+
{[%clk 0:01:54]} 22... Qxd4 {[%clk 0:01:34.4]} 23. exd4 {[%clk 0:01:54.9]} 23...
a3 {[%clk 0:01:02.8]} 24. Rg3 {[%clk 0:01:33.7]} 24... axb2 {[%clk 0:00:54]} 25.
Bxb2 {[%clk 0:01:33.3]} 25... Bd6 {[%clk 0:00:34.5]} 26. Rb3 {[%clk 0:01:17.8]}
26... Kc7 {[%clk 0:00:34]} 27. h3 {[%clk 0:01:09.6]} 27... Rhe8 {[%clk
0:00:25.5]} 28. a4 {[%clk 0:01:01.1]} 28... Re4 {[%clk 0:00:16.8]} 29. Bc3
{[%clk 0:00:58.3]} 29... Bf8 {[%clk 0:00:06.8]} 30. a5 {[%clk 0:00:42.5]} 30...
Bg7 {[%clk 0:00:05.3]} 31. Rab1 {[%clk 0:00:42.7]} 31... Bxd4 {[%clk 0:00:02.4]}
32. Rxb7+ {[%clk 0:00:42.4]} 32... Kd6 {[%clk 0:00:02.5]} 33. Rd1 {[%clk
0:00:41.5]} 33... Kc5 {[%clk 0:00:02.5]} 34. Bxd4+ {[%clk 0:00:40.8]} 34... Rxd4
{[%clk 0:00:02.9]} 35. Rxd4 {[%clk 0:00:39.9]} 35... Kxd4 {[%clk 0:00:03.8]} 36.
Rxf7 {[%clk 0:00:40.2]} 36... Rxa5 {[%clk 0:00:04.2]} 37. Rxh7 {[%clk
0:00:33.5]} 37... Kxc4 {[%clk 0:00:04.5]} 38. Rg7 {[%clk 0:00:28.6]} 38... g5
{[%clk 0:00:04.1]} 39. Kg2 {[%clk 0:00:28.8]} 39... Re5 {[%clk 0:00:02.7]} 40.
h4 {[%clk 0:00:26.6]} 40... gxh4 {[%clk 0:00:02.3]} 41. f4 {[%clk 0:00:27]}
41... Re3 {[%clk 0:00:01.9]} 42. g5 {[%clk 0:00:25.2]} 42... Rg3+ {[%clk
0:00:02.8]} 43. Kf2 {[%clk 0:00:24.7]} 43... Rg4 {[%clk 0:00:02.9]} 44. Kf3
{[%clk 0:00:24.5]} 44... Rg3+ {[%clk 0:00:02.9]} 45. Ke4 {[%clk 0:00:25]} 45...
h3 {[%clk 0:00:02.7]} 46. Rh7 {[%clk 0:00:24.7]} 46... c5 {[%clk 0:00:03.1]} 47.
Rh5 {[%clk 0:00:19.1]} 47... Kb3 {[%clk 0:00:03.3]} 48. f5 {[%clk 0:00:19.5]}
48... c4 {[%clk 0:00:03.6]} 49. Kf4 {[%clk 0:00:19.9]} 49... c3 {[%clk 0:00:03]}
50. Rh8 {[%clk 0:00:14.8]} 50... c2 {[%clk 0:00:03.4]} 51. Rb8+ {[%clk
0:00:14.7]} 51... Ka2 {[%clk 0:00:03.8]} 52. Ra8+ {[%clk 0:00:14.3]} 52... Kb2
{[%clk 0:00:03.9]} 53. Rb8+ {[%clk 0:00:14.5]} 53... Rb3 {[%clk 0:00:04.3]} 54.
Rc8 {[%clk 0:00:14.6]} 54... Rc3 {[%clk 0:00:04.5]} 55. Rb8+ {[%clk 0:00:14.7]}
55... Ka2 {[%clk 0:00:04.5]} 56. Ra8+ {[%clk 0:00:15]} 56... Kb3 {[%clk
0:00:04.8]} 57. Rb8+ {[%clk 0:00:15.3]} 57... Ka4 {[%clk 0:00:04.8]} 58. Ra8+
{[%clk 0:00:15.6]} 58... Kb5 {[%clk 0:00:05.2]} 59. Ra1 {[%clk 0:00:15.2]} 59...
c1=Q+ {[%clk 0:00:04.6]} 60. Rxc1 {[%clk 0:00:15.9]} 60... Rxc1 {[%clk
0:00:05.4]} 61. g6 {[%clk 0:00:16.8]} 61... h2 {[%clk 0:00:05.3]} 62. g7 {[%clk
0:00:16.8]} 62... Rg1 {[%clk 0:00:05.7]} 63. f6 {[%clk 0:00:16.1]} 63... h1=Q
{[%clk 0:00:05.9]} 64. f7 {[%clk 0:00:17]} 64... Rxg7 {[%clk 0:00:05]} 0-1

[Event "*** Titled Tuesday Blitz"]
[Site "Chess.com"]
[Date "2020.05.12"]
[Round "10"]
[White "CMS13"]
[Black "ChronicUnhappiness"]
[Result "1-0"]
[WhiteElo "2190"]
[BlackElo "2300"]
[TimeControl "180+1"]
[EndTime "11:54:57 PDT"]
[Termination "CMS13 won on time"]

1. e4 {[%clk 0:03:00.9]} 1... d6 {[%clk 0:02:59.4]} 2. Nc3 {[%clk 0:03:00.3]}
2... Nf6 {[%clk 0:03:00.3]} 3. Bc4 {[%clk 0:03:00.4]} 3... g6 {[%clk 0:03:00.4]}
4. d3 {[%clk 0:03:00.6]} 4... Bg7 {[%clk 0:03:00.3]} 5. f4 {[%clk 0:03:00.9]}
5... O-O {[%clk 0:02:57.6]} 6. Nf3 {[%clk 0:03:01]} 6... c6 {[%clk 0:02:46.1]}
7. Bb3 {[%clk 0:03:00.9]} 7... d5 {[%clk 0:02:34.7]} 8. e5 {[%clk 0:02:54.1]}
8... Ne8 {[%clk 0:02:33.8]} 9. O-O {[%clk 0:02:53.6]} 9... Bg4 {[%clk
0:02:31.4]} 10. Qe1 {[%clk 0:02:53.4]} 10... Bxf3 {[%clk 0:02:30.3]} 11. Rxf3
{[%clk 0:02:53.1]} 11... e6 {[%clk 0:02:29.6]} 12. Kh1 {[%clk 0:02:49.5]} 12...
c5 {[%clk 0:02:20.1]} 13. g4 {[%clk 0:02:44.2]} 13... Nc6 {[%clk 0:02:17.3]} 14.
Ne2 {[%clk 0:02:36.8]} 14... b5 {[%clk 0:02:13.3]} 15. c3 {[%clk 0:02:36.7]}
15... c4 {[%clk 0:02:07.7]} 16. dxc4 {[%clk 0:02:36.6]} 16... bxc4 {[%clk
0:02:02.6]} 17. Bc2 {[%clk 0:02:36.4]} 17... f5 {[%clk 0:02:00.3]} 18. gxf5
{[%clk 0:02:29.4]} 18... exf5 {[%clk 0:01:54.4]} 19. Nd4 {[%clk 0:02:26]} 19...
Nxd4 {[%clk 0:01:53.4]} 20. cxd4 {[%clk 0:02:25.6]} 20... Nc7 {[%clk 0:01:54.3]}
21. Be3 {[%clk 0:02:10.6]} 21... Ne6 {[%clk 0:01:53.4]} 22. b3 {[%clk
0:02:06.8]} 22... Rc8 {[%clk 0:01:51.6]} 23. bxc4 {[%clk 0:01:52.4]} 23... Rxc4
{[%clk 0:01:52.5]} 24. Bb3 {[%clk 0:01:52.6]} 24... Kh8 {[%clk 0:01:46.3]} 25.
Bxc4 {[%clk 0:01:52]} 25... dxc4 {[%clk 0:01:47.2]} 26. Rd1 {[%clk 0:01:49.4]}
26... Qd5 {[%clk 0:01:46.8]} 27. Kg2 {[%clk 0:01:47.4]} 27... g5 {[%clk
0:01:34.6]} 28. Kf2 {[%clk 0:01:35.7]} 28... g4 {[%clk 0:01:12.8]} 29. Rg3
{[%clk 0:01:35.3]} 29... h5 {[%clk 0:01:12.8]} 30. h4 {[%clk 0:01:27.4]} 30...
Rc8 {[%clk 0:00:58.9]} 31. Qc3 {[%clk 0:01:25.4]} 31... Bh6 {[%clk 0:00:53.3]}
32. Qc1 {[%clk 0:01:22]} 32... c3 {[%clk 0:00:47.7]} 33. Rd3 {[%clk 0:01:16.6]}
33... Qxa2+ {[%clk 0:00:37.3]} 34. Kg1 {[%clk 0:01:14.2]} 34... c2 {[%clk
0:00:32.5]} 35. d5 {[%clk 0:01:13.2]} 35... Nxf4 {[%clk 0:00:27.5]} 36. Ra3
{[%clk 0:00:39.9]} 36... Qb1 {[%clk 0:00:25.3]} 37. Kf2 {[%clk 0:00:27.7]} 37...
Qxc1 {[%clk 0:00:21.6]} 38. Bxc1 {[%clk 0:00:27.1]} 38... Nh3+ {[%clk
0:00:17.5]} 39. Rxh3 {[%clk 0:00:27.2]} 39... Bxc1 {[%clk 0:00:17.7]} 40. Rhc3
{[%clk 0:00:26.3]} 40... Rxc3 {[%clk 0:00:04.5]} 41. Rxc3 {[%clk 0:00:27.2]}
41... f4 {[%clk 0:00:04.7]} 42. Rxc2 {[%clk 0:00:27.3]} 42... Be3+ {[%clk
0:00:05.6]} 43. Ke2 {[%clk 0:00:27.3]} 43... Bb6 {[%clk 0:00:04.1]} 44. d6
{[%clk 0:00:27.2]} 44... f3+ {[%clk 0:00:05]} 45. Kf1 {[%clk 0:00:27]} 45... g3
{[%clk 0:00:05.4]} 46. d7 {[%clk 0:00:26.8]} 46... g2+ {[%clk 0:00:05.3]} 47.
Rxg2 {[%clk 0:00:24.7]} 47... fxg2+ {[%clk 0:00:06.2]} 48. Kxg2 {[%clk
0:00:25.5]} 48... Kg7 {[%clk 0:00:06.4]} 49. Kf3 {[%clk 0:00:23.9]} 49... Kf7
{[%clk 0:00:06.4]} 50. Kf4 {[%clk 0:00:23]} 50... Ke6 {[%clk 0:00:06.3]} 51. Kg5
{[%clk 0:00:22.9]} 51... Bd8+ {[%clk 0:00:06.5]} 52. Kxh5 {[%clk 0:00:23]} 52...
a5 {[%clk 0:00:07.4]} 53. Kg6 {[%clk 0:00:22.6]} 53... a4 {[%clk 0:00:08.3]} 54.
h5 {[%clk 0:00:23.1]} 54... a3 {[%clk 0:00:09.2]} 55. h6 {[%clk 0:00:23.6]}
55... a2 {[%clk 0:00:10.1]} 56. h7 {[%clk 0:00:24]} 56... a1=Q {[%clk
0:00:09.8]} 57. h8=Q {[%clk 0:00:23.3]} 57... Qg1+ {[%clk 0:00:10.7]} 58. Kh7
{[%clk 0:00:23.4]} 58... Qh2+ {[%clk 0:00:09.3]} 59. Kg8 {[%clk 0:00:23.3]}
59... Qg3+ {[%clk 0:00:09.7]} 60. Qg7 {[%clk 0:00:22.9]} 60... Qf3 {[%clk
0:00:06.1]} 61. Qg6+ {[%clk 0:00:21.4]} 61... Kd5 {[%clk 0:00:05]} 62. Qd6+
{[%clk 0:00:20.8]} 62... Kc4 {[%clk 0:00:04.6]} 63. Qe6+ {[%clk 0:00:19.8]}
63... Kc3 {[%clk 0:00:04.6]} 64. Qf7 {[%clk 0:00:12.6]} 64... Qg4+ {[%clk
0:00:04]} 65. Kf8 {[%clk 0:00:12.3]} 65... Qh4 {[%clk 0:00:02.1]} 66. Qf3+
{[%clk 0:00:11.4]} 1-0

[Event "*** Titled Tuesday Blitz"]
[Site "Chess.com"]
[Date "2020.05.12"]
[Round "10"]
[White "MartinMatthiesen"]
[Black "kinga2008"]
[Result "1/2-1/2"]
[WhiteElo "2391"]
[BlackElo "2232"]
[TimeControl "180+1"]
[EndTime "11:55:00 PDT"]
[Termination "Game drawn - insufficient material"]

1. d4 {[%clk 0:02:56.3]} 1... Nf6 {[%clk 0:02:58.2]} 2. Nf3 {[%clk 0:02:54.7]}
2... g6 {[%clk 0:02:56.1]} 3. b3 {[%clk 0:02:54.3]} 3... Bg7 {[%clk 0:02:54.7]}
4. Bb2 {[%clk 0:02:54.2]} 4... d5 {[%clk 0:02:55.2]} 5. e3 {[%clk 0:02:49.8]}
5... O-O {[%clk 0:02:51.6]} 6. Be2 {[%clk 0:02:49.5]} 6... Bg4 {[%clk
0:02:49.6]} 7. O-O {[%clk 0:02:49.4]} 7... Nbd7 {[%clk 0:02:48.1]} 8. Nbd2
{[%clk 0:02:49]} 8... Re8 {[%clk 0:02:47.5]} 9. c4 {[%clk 0:02:48]} 9... c6
{[%clk 0:02:46.4]} 10. h3 {[%clk 0:02:43.4]} 10... Bxf3 {[%clk 0:02:44.6]} 11.
Nxf3 {[%clk 0:02:41.7]} 11... Ne4 {[%clk 0:02:43.3]} 12. Qc2 {[%clk 0:02:39.9]}
12... e5 {[%clk 0:02:41.4]} 13. cxd5 {[%clk 0:02:38.4]} 13... cxd5 {[%clk
0:02:40.3]} 14. Bb5 {[%clk 0:02:34.6]} 14... Rc8 {[%clk 0:02:32.3]} 15. Qe2
{[%clk 0:02:08.7]} 15... exd4 {[%clk 0:02:17.9]} 16. Nxd4 {[%clk 0:01:58.7]}
16... Nc3 {[%clk 0:02:09.2]} 17. Qd3 {[%clk 0:01:40.6]} 17... Ne5 {[%clk
0:01:52.5]} 18. Qd2 {[%clk 0:01:35.8]} 18... Nxb5 {[%clk 0:01:46.2]} 19. Nxb5
{[%clk 0:01:35.3]} 19... a6 {[%clk 0:01:41.3]} 20. Nc3 {[%clk 0:01:27.1]} 20...
Nc6 {[%clk 0:01:18.7]} 21. Rad1 {[%clk 0:01:24.7]} 21... d4 {[%clk 0:01:17.3]}
22. exd4 {[%clk 0:01:20.1]} 22... Qxd4 {[%clk 0:01:15.3]} 23. Qxd4 {[%clk
0:01:08.9]} 23... Nxd4 {[%clk 0:01:13.8]} 24. Na4 {[%clk 0:00:42.2]} 24... Ne2+
{[%clk 0:01:07.9]} 25. Kh2 {[%clk 0:00:41.2]} 25... Bxb2 {[%clk 0:01:07]} 26.
Nxb2 {[%clk 0:00:42.1]} 26... Rc2 {[%clk 0:01:06.3]} 27. Nc4 {[%clk 0:00:41.4]}
27... Rxa2 {[%clk 0:01:01.8]} 28. Rfe1 {[%clk 0:00:39.4]} 28... Re6 {[%clk
0:00:53.7]} 29. Rd8+ {[%clk 0:00:37.9]} 29... Kg7 {[%clk 0:00:53]} 30. Rd7
{[%clk 0:00:38.5]} 30... Nf4 {[%clk 0:00:38.5]} 31. Rxe6 {[%clk 0:00:27]} 31...
Nxe6 {[%clk 0:00:39.4]} 32. Kg3 {[%clk 0:00:24.3]} 32... Nc5 {[%clk 0:00:35.4]}
33. Rc7 {[%clk 0:00:18.9]} 33... Ne4+ {[%clk 0:00:34.4]} 34. Kf3 {[%clk
0:00:19.1]} 34... Nd2+ {[%clk 0:00:29.2]} 35. Nxd2 {[%clk 0:00:18.2]} 35... Rxd2
{[%clk 0:00:29.7]} 36. Rxb7 {[%clk 0:00:19.1]} 36... Rd3+ {[%clk 0:00:26]} 37.
Ke4 {[%clk 0:00:19.1]} 37... Rd2 {[%clk 0:00:25.4]} 38. Ke3 {[%clk 0:00:19.4]}
38... Rb2 {[%clk 0:00:24.8]} 39. Rb6 {[%clk 0:00:18.5]} 39... a5 {[%clk
0:00:24.5]} 40. Rb5 {[%clk 0:00:15.6]} 40... Kf6 {[%clk 0:00:23.2]} 41. g4
{[%clk 0:00:15.5]} 41... Ke6 {[%clk 0:00:21.7]} 42. f4 {[%clk 0:00:15.4]} 42...
Rh2 {[%clk 0:00:19.7]} 43. Rxa5 {[%clk 0:00:12]} 43... Rxh3+ {[%clk 0:00:19.2]}
44. Ke4 {[%clk 0:00:11.5]} 44... Rxb3 {[%clk 0:00:13.3]} 45. Ra7 {[%clk
0:00:11]} 45... Rb4+ {[%clk 0:00:12.3]} 46. Kf3 {[%clk 0:00:10.5]} 46... h5
{[%clk 0:00:05.3]} 47. gxh5 {[%clk 0:00:09.6]} 47... gxh5 {[%clk 0:00:06.2]} 48.
Ra6+ {[%clk 0:00:10]} 48... Kf5 {[%clk 0:00:06.6]} 49. Ra5+ {[%clk 0:00:10.4]}
49... Kg6 {[%clk 0:00:06.3]} 50. Rg5+ {[%clk 0:00:11.1]} 50... Kh6 {[%clk
0:00:06.6]} 51. Rf5 {[%clk 0:00:11.2]} 51... Kg6 {[%clk 0:00:05.1]} 52. Rg5+
{[%clk 0:00:11.5]} 52... Kh6 {[%clk 0:00:05.4]} 53. Kg3 {[%clk 0:00:12.4]} 53...
Rb6 {[%clk 0:00:03.2]} 54. Kh4 {[%clk 0:00:12]} 54... Rf6 {[%clk 0:00:03.4]} 55.
Rxh5+ {[%clk 0:00:11.4]} 55... Kg6 {[%clk 0:00:03.8]} 56. Rg5+ {[%clk
0:00:10.3]} 56... Kh6 {[%clk 0:00:03.6]} 57. Kg4 {[%clk 0:00:10.8]} 57... Rg6
{[%clk 0:00:03.3]} 58. Kf5 {[%clk 0:00:11.1]} 58... Rxg5+ {[%clk 0:00:03]} 59.
fxg5+ {[%clk 0:00:12]} 59... Kg7 {[%clk 0:00:03.4]} 60. Ke5 {[%clk 0:00:11.3]}
60... Kg6 {[%clk 0:00:03.4]} 61. Kf4 {[%clk 0:00:11.6]} 61... Kg7 {[%clk
0:00:03.9]} 62. Kf5 {[%clk 0:00:11.6]} 62... Kg8 {[%clk 0:00:02]} 63. Ke5 {[%clk
0:00:10.6]} 63... Kf8 {[%clk 0:00:02.2]} 64. Kf6 {[%clk 0:00:10.5]} 64... Kg8
{[%clk 0:00:02.6]} 65. g6 {[%clk 0:00:10.3]} 65... fxg6 {[%clk 0:00:02.1]} 66.
Kxg6 {[%clk 0:00:11.2]} 1/2-1/2

[Event "*** Titled Tuesday Blitz"]
[Site "Chess.com"]
[Date "2020.05.12"]
[Round "10"]
[White "Ave_Mariia"]
[Black "TERMINATOR_PC"]
[Result "0-1"]
[WhiteElo "2281"]
[BlackElo "2476"]
[TimeControl "180+1"]
[EndTime "11:55:02 PDT"]
[Termination "TERMINATOR_PC won by resignation"]

1. c4 {[%clk 0:03:00.9]} 1... Nf6 {[%clk 0:03:00.9]} 2. Nc3 {[%clk 0:02:58.8]}
2... g6 {[%clk 0:03:01.8]} 3. g3 {[%clk 0:02:58.9]} 3... Bg7 {[%clk 0:03:01.8]}
4. Bg2 {[%clk 0:02:59.6]} 4... O-O {[%clk 0:03:02.4]} 5. e3 {[%clk 0:03:00.1]}
5... d6 {[%clk 0:02:53.7]} 6. Nge2 {[%clk 0:03:00.2]} 6... e5 {[%clk 0:02:51.7]}
7. O-O {[%clk 0:02:58.3]} 7... Nc6 {[%clk 0:02:42.3]} 8. d3 {[%clk 0:02:55.6]}
8... Be6 {[%clk 0:02:38.6]} 9. Rb1 {[%clk 0:02:54.2]} 9... Qd7 {[%clk
0:02:38.8]} 10. b4 {[%clk 0:02:53.5]} 10... Bh3 {[%clk 0:02:38.5]} 11. b5 {[%clk
0:02:52.6]} 11... Nd8 {[%clk 0:02:38.8]} 12. Bb2 {[%clk 0:02:34.5]} 12... Bxg2
{[%clk 0:02:31.7]} 13. Kxg2 {[%clk 0:02:35.4]} 13... Ne6 {[%clk 0:02:22.8]} 14.
d4 {[%clk 0:02:27.9]} 14... e4 {[%clk 0:01:52.9]} 15. h4 {[%clk 0:02:09.8]}
15... Rae8 {[%clk 0:01:34.3]} 16. Qc2 {[%clk 0:01:57.6]} 16... g5 {[%clk
0:01:25.3]} 17. Rh1 {[%clk 0:01:41]} 17... c6 {[%clk 0:01:02.8]} 18. bxc6 {[%clk
0:01:30.3]} 18... bxc6 {[%clk 0:01:03.7]} 19. d5 {[%clk 0:01:28]} 19... cxd5
{[%clk 0:00:50.9]} 20. cxd5 {[%clk 0:01:27.6]} 20... Nc5 {[%clk 0:00:43.4]} 21.
hxg5 {[%clk 0:01:25.5]} 21... Ng4 {[%clk 0:00:44]} 22. Nf4 {[%clk 0:01:09.6]}
22... Qf5 {[%clk 0:00:38.2]} 23. Nb5 {[%clk 0:00:57.8]} 23... Be5 {[%clk
0:00:31.7]} 24. Nd4 {[%clk 0:00:46.5]} 24... Qxg5 {[%clk 0:00:26.8]} 25. Rh4
{[%clk 0:00:38.8]} 25... Nd3 {[%clk 0:00:12.7]} 26. Nxd3 {[%clk 0:00:35.8]}
26... Rc8 {[%clk 0:00:09.7]} 27. Qe2 {[%clk 0:00:34]} 27... Nxe3+ {[%clk
0:00:06.9]} 28. Qxe3 {[%clk 0:00:30.8]} 28... Qxe3 {[%clk 0:00:07.5]} 29. fxe3
{[%clk 0:00:31.4]} 29... exd3 {[%clk 0:00:08.4]} 30. Rd1 {[%clk 0:00:27.2]}
30... Rb8 {[%clk 0:00:05.6]} 31. Rd2 {[%clk 0:00:26.5]} 31... Rfc8 {[%clk
0:00:04.7]} 32. Kf3 {[%clk 0:00:21]} 32... Rc2 {[%clk 0:00:04.3]} 33. Nxc2
{[%clk 0:00:20.5]} 33... Rxb2 {[%clk 0:00:04.9]} 34. Rxd3 {[%clk 0:00:19.6]}
34... Rxc2 {[%clk 0:00:05.5]} 35. Rb3 {[%clk 0:00:18.9]} 35... f5 {[%clk
0:00:05.9]} 36. Rh5 {[%clk 0:00:18.9]} 36... Rc1 {[%clk 0:00:05.3]} 37. Rxf5
{[%clk 0:00:18.7]} 37... Kg7 {[%clk 0:00:05.7]} 38. Ke4 {[%clk 0:00:13.8]} 38...
Kg6 {[%clk 0:00:06.6]} 39. g4 {[%clk 0:00:13.3]} 39... Rc4+ {[%clk 0:00:07]} 40.
Kd3 {[%clk 0:00:13.8]} 40... Rxg4 {[%clk 0:00:07.2]} 41. Rf8 {[%clk 0:00:14.1]}
41... Ra4 {[%clk 0:00:07.8]} 42. a3 {[%clk 0:00:13.3]} 42... a5 {[%clk
0:00:07.3]} 43. Rfb8 {[%clk 0:00:12.5]} 43... h5 {[%clk 0:00:07.1]} 44. e4
{[%clk 0:00:12.8]} 44... Rd4+ {[%clk 0:00:06.1]} 45. Ke3 {[%clk 0:00:12.7]}
45... Rc4 {[%clk 0:00:06.8]} 46. Kf3 {[%clk 0:00:12.1]} 46... a4 {[%clk
0:00:07]} 47. Rd3 {[%clk 0:00:11.2]} 47... h4 {[%clk 0:00:06.9]} 48. Rg8+ {[%clk
0:00:10.4]} 48... Kh7 {[%clk 0:00:06.9]} 49. Rg1 {[%clk 0:00:09.9]} 49... h3
{[%clk 0:00:07.2]} 50. Rh1 {[%clk 0:00:09.9]} 50... h2 {[%clk 0:00:07.9]} 51.
Re3 {[%clk 0:00:08.5]} 51... Rc2 {[%clk 0:00:06.7]} 52. Rd3 {[%clk 0:00:08.9]}
52... Kg6 {[%clk 0:00:06.8]} 53. Re3 {[%clk 0:00:08.1]} 53... Kg5 {[%clk
0:00:07.3]} 54. Rd3 {[%clk 0:00:08.5]} 54... Kh4 {[%clk 0:00:07.8]} 55. Re3
{[%clk 0:00:08.8]} 55... Ra2 {[%clk 0:00:07.6]} 56. Rd3 {[%clk 0:00:09]} 56...
Rc2 {[%clk 0:00:07.8]} 57. Re3 {[%clk 0:00:09.3]} 57... Rd2 {[%clk 0:00:08.4]}
58. Rf1 {[%clk 0:00:08.2]} 58... Kh3 {[%clk 0:00:07.9]} 59. Rh1 {[%clk
0:00:08.3]} 59... Ra2 {[%clk 0:00:07.4]} 60. Rf1 {[%clk 0:00:08.5]} 60... Rd2
{[%clk 0:00:07.2]} 61. Rh1 {[%clk 0:00:08.5]} 61... Rg2 {[%clk 0:00:07.6]} 62.
Ree1 {[%clk 0:00:07.2]} 62... Rg3+ {[%clk 0:00:07.1]} 63. Kf2 {[%clk 0:00:07.3]}
63... Rxa3 {[%clk 0:00:08]} 64. Ra1 {[%clk 0:00:07.3]} 64... Rxa1 {[%clk
0:00:07.5]} 65. Rxa1 {[%clk 0:00:06.7]} 65... Bxa1 {[%clk 0:00:08.4]} 0-1

[Event "*** Titled Tuesday Blitz"]
[Site "Chess.com"]
[Date "2020.05.12"]
[Round "10"]
[White "guillembaches"]
[Black "GMartin_Petrov"]
[Result "0-1"]
[WhiteElo "2431"]
[BlackElo "2572"]
[TimeControl "180+1"]
[EndTime "11:55:04 PDT"]
[Termination "GMartin_Petrov won on time"]

1. e4 {[%clk 0:03:00.9]} 1... c5 {[%clk 0:02:59]} 2. Nf3 {[%clk 0:03:00.9]} 2...
d6 {[%clk 0:02:59.3]} 3. d4 {[%clk 0:03:00.9]} 3... cxd4 {[%clk 0:03:00.2]} 4.
Nxd4 {[%clk 0:03:01.2]} 4... Nf6 {[%clk 0:03:00.9]} 5. Nc3 {[%clk 0:03:01.5]}
5... a6 {[%clk 0:03:01.4]} 6. Be2 {[%clk 0:03:02]} 6... e5 {[%clk 0:03:01.1]} 7.
Nf3 {[%clk 0:03:02.5]} 7... Be7 {[%clk 0:03:00.7]} 8. Bg5 {[%clk 0:03:02.7]}
8... Be6 {[%clk 0:02:59.5]} 9. Bxf6 {[%clk 0:03:02.5]} 9... Bxf6 {[%clk
0:02:59.4]} 10. Nd5 {[%clk 0:03:02.9]} 10... Nd7 {[%clk 0:02:56.9]} 11. Bc4
{[%clk 0:03:02.6]} 11... O-O {[%clk 0:02:54.3]} 12. O-O {[%clk 0:03:01.9]} 12...
Rc8 {[%clk 0:02:52.2]} 13. Bb3 {[%clk 0:02:58.7]} 13... Nc5 {[%clk 0:02:32.7]}
14. Re1 {[%clk 0:02:58.3]} 14... Bg5 {[%clk 0:02:26.3]} 15. c3 {[%clk
0:02:44.1]} 15... g6 {[%clk 0:02:22.6]} 16. Bc2 {[%clk 0:02:20.8]} 16... Bh6
{[%clk 0:02:20.7]} 17. Qe2 {[%clk 0:02:14.2]} 17... Kh8 {[%clk 0:02:13.3]} 18.
Rad1 {[%clk 0:02:13.6]} 18... Rg8 {[%clk 0:02:02.1]} 19. b4 {[%clk 0:02:05.7]}
19... Nd7 {[%clk 0:01:59.9]} 20. Bb3 {[%clk 0:02:04.3]} 20... Bf8 {[%clk
0:01:30.7]} 21. Rd3 {[%clk 0:01:47.7]} 21... f5 {[%clk 0:01:26.7]} 22. exf5
{[%clk 0:01:46.8]} 22... gxf5 {[%clk 0:01:26.2]} 23. Nd2 {[%clk 0:01:41.1]}
23... e4 {[%clk 0:00:59.7]} 24. Rg3 {[%clk 0:01:35.8]} 24... Ne5 {[%clk
0:00:56.5]} 25. Rxg8+ {[%clk 0:01:30.1]} 25... Bxg8 {[%clk 0:00:57.4]} 26. Nf4
{[%clk 0:01:19.6]} 26... Bxb3 {[%clk 0:00:50.9]} 27. Nxb3 {[%clk 0:01:18.9]}
27... Rxc3 {[%clk 0:00:49.2]} 28. Rd1 {[%clk 0:01:09.9]} 28... Qe8 {[%clk
0:00:32.3]} 29. Nd4 {[%clk 0:01:03.4]} 29... Qf7 {[%clk 0:00:30.4]} 30. Nde6
{[%clk 0:00:58.6]} 30... Bh6 {[%clk 0:00:23.2]} 31. Kh1 {[%clk 0:00:49.7]} 31...
Bxf4 {[%clk 0:00:20.2]} 32. Nxf4 {[%clk 0:00:50.6]} 32... Nd3 {[%clk 0:00:18.8]}
33. Nxd3 {[%clk 0:00:44.1]} 33... exd3 {[%clk 0:00:19.7]} 34. Rxd3 {[%clk
0:00:36.2]} 34... Rc1+ {[%clk 0:00:18.9]} 35. Rd1 {[%clk 0:00:35.9]} 35... Rxd1+
{[%clk 0:00:16.5]} 36. Qxd1 {[%clk 0:00:36.8]} 36... Qxa2 {[%clk 0:00:16]} 37.
h3 {[%clk 0:00:34.9]} 37... Qe6 {[%clk 0:00:15.3]} 38. Qd4+ {[%clk 0:00:33.1]}
38... Kg8 {[%clk 0:00:15.5]} 39. Qb6 {[%clk 0:00:31.2]} 39... Qd7 {[%clk
0:00:15.6]} 40. Qd4 {[%clk 0:00:30.7]} 40... Kf7 {[%clk 0:00:15.4]} 41. Qd5+
{[%clk 0:00:30.7]} 41... Kg7 {[%clk 0:00:15.3]} 42. f4 {[%clk 0:00:30.6]} 42...
Qe7 {[%clk 0:00:10.7]} 43. Kh2 {[%clk 0:00:30.3]} 43... Qd7 {[%clk 0:00:09.9]}
44. Kg3 {[%clk 0:00:29.3]} 44... h6 {[%clk 0:00:10.1]} 45. Kh2 {[%clk
0:00:26.9]} 45... Kg6 {[%clk 0:00:09.5]} 46. Qg8+ {[%clk 0:00:24.7]} 46... Kf6
{[%clk 0:00:09.8]} 47. Qh8+ {[%clk 0:00:24.2]} 47... Kg6 {[%clk 0:00:09.6]} 48.
Qg8+ {[%clk 0:00:24.5]} 48... Qg7 {[%clk 0:00:09.6]} 49. Qe6+ {[%clk 0:00:23.2]}
49... Qf6 {[%clk 0:00:09.6]} 50. Qg8+ {[%clk 0:00:23.3]} 50... Kh5 {[%clk
0:00:06.8]} 51. g4+ {[%clk 0:00:14.1]} 51... Kh4 {[%clk 0:00:06.6]} 52. g5
{[%clk 0:00:14.1]} 52... Qb2+ {[%clk 0:00:06]} 53. Kg1 {[%clk 0:00:14.2]} 53...
Qc1+ {[%clk 0:00:02.9]} 54. Kf2 {[%clk 0:00:14]} 54... Qxf4+ {[%clk 0:00:03.5]}
55. Ke2 {[%clk 0:00:14.4]} 55... Qe4+ {[%clk 0:00:03.4]} 56. Kd2 {[%clk
0:00:14.5]} 56... Qf4+ {[%clk 0:00:03.6]} 57. Kc2 {[%clk 0:00:14.6]} 57... Qxg5
{[%clk 0:00:04.5]} 58. Qe8 {[%clk 0:00:13.8]} 58... Kxh3 {[%clk 0:00:04.9]} 59.
Qe2 {[%clk 0:00:13.8]} 59... Qg3 {[%clk 0:00:04.7]} 60. Qh5+ {[%clk 0:00:13.4]}
60... Kg2 {[%clk 0:00:04.3]} 61. Qxh6 {[%clk 0:00:13.4]} 61... f4 {[%clk
0:00:03.7]} 62. Qxd6 {[%clk 0:00:11.2]} 62... f3 {[%clk 0:00:04.3]} 63. Qd2+
{[%clk 0:00:10.6]} 63... Qf2 {[%clk 0:00:04.7]} 0-1